Cogmind - Beta 13 *** ADVENTURER MODE // 2024.04.10 @ 21:25:03 Player: Kitrana Result: Self-destructed Performance ------------- Evolutions (3) 1500 Regions Visited (7) 1400 Robots Destroyed (80) 400 Value Destroyed (2270) 2270 Prototype IDs (10) 200 Alien Tech Used (0) 0 Bonus (317) 317 TOTAL SCORE: 6087 Bonus ------- High Alert Combat Kills 17 Aligned with FarCom 300 Cogmind --------- Core Integrity 392/700 Matter 242/300 Energy 100/100 System Corruption 0% Temperature Cool (0) Movement Treading (160) Location -7/Factory Parts ------- > --- POWER (2) -------- (None) > --- PROPULSION (3) --- Light Treads > --- UTILITY (5) ------ Modified TNC > --- WEAPON (3) ------- Mining Claw > --- INVENTORY (5) ---- Remote Datajack Peak State ------------ > --- POWER ------------ Light Deuterium Engine Nuclear Core > --- PROPULSION ------- Light Treads Light Treads Medium Treads > --- UTILITY ---------- Structural Scanner Signal Interpreter Modified TNC Hardened Medium Armor Plating > --- WEAPON ----------- Heavy Assault Rifle Shotgun Remote Datajack > --- INVENTORY -------- Mining Claw [Rating: 31] Favorites ----------- Power Improved Ion Engine Engine Improved Ion Engine Power Core Nuclear Core Propulsion Light Treads Treads Light Treads Hover Unit Backup Propulsion I Flight Unit Cesium-ion Thruster Utility Signal Interpreter Device Seismic Detector Processor Signal Interpreter Hackware Hacking Suite Protection Hardened Medium Armor Plating Weapon Flail Energy Gun Beam Rifle Ballistic Gun Improved Assault Rifle Ballistic Cannon Flak Cannon Launcher EMP Blaster Special Weapon Mining Laser Impact Weapon Flail Slashing Weapon Mining Claw Special Melee Weapon Improved Datajack Build | -11 -10 -9 -9 -9 -8 -8 -7 ------- Run | Yrd Mat Mat Min Exi Min Mat Fac Slots Evolved 6 | . . 2 . . . 2 2 Power 1 | . . . . . . 1 . Propulsion 1 | . . . . . . . 1 Utility 3 | . . 1 . . . 1 1 Weapon 1 | . . 1 . . . . . Parts Attached 59 | 8 2 19 . 1 3 21 5 Power 8 | 1 . 3 . . . 4 . Engine 7 | 1 . 3 . . . 3 . Core 1 | . . . . . . 1 . Reactor . | . . . . . . . . Propulsion 15 | 2 . 5 . . 1 4 3 Treads 14 | 2 . 5 . . . 4 3 Leg . | . . . . . . . . Wheel . | . . . . . . . . Hover . | . . . . . . . . Flight 1 | . . . . . 1 . . Utility 12 | 1 2 4 . 1 1 2 1 Device 5 | 1 1 2 . . . 1 . Storage . | . . . . . . . . Processor 3 | . 1 1 . 1 . . . Hackware 2 | . . . . . 1 1 . Protection 2 | . . 1 . . . . 1 Artifact . | . . . . . . . . Weapon 24 | 4 . 7 . . 1 11 1 Energy Gun 3 | . . 3 . . . . . Energy Cannon . | . . . . . . . . Ballistic Gun 8 | 2 . 1 . . . 5 . Ballistic Cannon 3 | . . . . . 1 2 . Launcher 1 | . . 1 . . . . . Special Weapon 4 | 2 . 1 . . . 1 . Impact Weapon 1 | . . 1 . . . . . Slashing Weapon 3 | . . . . . . 2 1 Piercing Weapon . | . . . . . . . . Special Melee Weapon 1 | . . . . . . 1 . Unidentified Prototypes 2 | . . 1 . 1 . . . Parts Lost 22 | . 1 8 . . . 2 11 Power 3 | . . 1 . . . . 2 Propulsion 5 | . . 2 . . . . 3 Utility 6 | . . 2 . . . . 4 Weapon 8 | . 1 3 . . . 2 2 Highest Loss Streak 10 | . 1 2 . . . 1 10 To Critical Strikes . | . . . . . . . . Average Slot Usage (%) 85 | . 94 77 77 77 88 94 86 Engine 11 | . 14 10 11 11 11 14 5 Core 1 | . . . . . . 2 7 Treads 16 | . 28 20 11 11 11 16 17 Device 3 | . 14 7 . . . 1 6 Processor 19 | . 9 18 22 22 25 18 14 Hackware 4 | . . . . . 7 15 2 Energy Gun 2 | . . 11 . . . . . Ballistic Gun 8 | . 14 3 11 11 4 7 13 Ballistic Cannon 2 | . . . . . 6 7 . Special Weapon 6 | . 13 . 11 11 11 2 5 Impact Weapon 5 | . . 2 11 11 11 3 . Naked Turns . | . . . . . . . . Heaviest Build 30 | 10 9 13 13 13 16 25 30 Greatest Support 68 | 40 40 43 20 20 20 40 68 Greatest Overweight (x) . | . . . . . . . . Average Overweight (x) . | . . . . . . . . Largest Inventory Capacity 5 | 5 5 5 5 5 5 5 5 Average Capacity 5 | 5 5 5 5 5 5 5 5 Most Carried 3 | 1 3 3 . 1 1 3 2 Average Carried . | . 1 . . . . 1 1 Final Capacity 5 | 5 5 5 5 5 5 5 5 Final Carried 2 | 1 2 . . . . 2 1 Class Distribution -------------------- 62% | Mutant 23% | Hacker-Mutant 9% | Hacker-Skirmisher 3% | Scavenger-Skirmisher Dominant Class ---------------- Mutant | -10/Materials Mutant | -9/Materials Mutant | -9/Mines Mutant | -9/Exiles Hacker-Mutant | -8/Mines Hacker-Mutant | -8/Materials Scavenger-Skirmisher | -7/Factory Resources | -11 -10 -9 -9 -9 -8 -8 -7 ----------- Run | Yrd Mat Mat Min Exi Min Mat Fac Matter Collected 1399 | 244 128 175 . . 21 639 192 Remotely . | . . . . . . . . Salvage Created 2452 | 70 87 1132 . . . 832 331 Parts 158 | 10 6 53 . . . 76 13 Haulers Intercepted 2 | . . 1 . . . 1 . Recyclers Shooed 2 | 1 . . . . . 1 . Parts Field Recycled . | . . . . . . . . Retrieved Matter . | . . . . . . . . Parts Self-Destructed . | . . . . . . . . Prevented . | . . . . . . . . Kills | -11 -10 -9 -9 -9 -8 -8 -7 ------- Run | Yrd Mat Mat Min Exi Min Mat Fac Combat Hostiles Destroyed 57 | . 3 23 . . . 26 5 Melee 7 | . . 4 . . . . 3 Guns 17 | . 1 12 . . . 2 2 Cannons 26 | . 2 . . . . 24 . AOE 4 | . . 4 . . . . . Classes Destroyed 11 | 1 4 4 . . . 2 . Worker 6 | . 1 4 . . . . 1 Builder 2 | . . . . . . 2 . Tunneler 4 | 4 . . . . . . . Hauler 2 | . . 1 . . . 1 . Operator 1 | . . 1 . . . . . Watcher 8 | . 1 2 . . . 5 . Swarmer 15 | . 1 4 . . . 10 . Grunt 20 | . 2 12 . . . 5 1 Brawler 1 | . . . . . . 1 . Duelist 1 | . . 1 . . . . . Sentry 20 | . . 6 . . . 10 4 Best Kill Streak 7 | 2 2 7 . . . 5 2 Combat Bots Only 4 | . 2 4 . . . 4 2 Max Kills in Single Turn 2 | 1 1 2 . . . 2 1 Gunslinging . | . . . . . . . . Exploded 2 | . . 2 . . . . . Melee 1 | . . 1 . . . . 1 Uniques/NPCs Destroyed . | . . . . . . . . Combat | -11 -10 -9 -9 -9 -8 -8 -7 -------- Run | Yrd Mat Mat Min Exi Min Mat Fac Hostile Shots Fired 617 | . 82 156 . . 21 74 284 Missed 182 | . 26 50 . . 9 25 72 Damage Taken 3535 | . 389 1157 . . 71 445 1473 Core 604 | . 48 218 . . 6 24 308 Absorbed by Shields . | . . . . . . . . Ignored by Resistances 1097 | . 129 336 . . 24 132 476 Regen/Repaired (Parts) 200 | . . 18 . . . 110 72 Core Remaining (%) 79 | 100 80 . . . 44 95 . Volleys Fired 205 | 10 14 74 2 10 . 71 24 Largest 2 | 2 2 2 2 2 . 2 2 Hottest 123 | 120 120 96 123 123 . 67 46 Shots Fired 293 | 17 17 88 4 11 . 112 44 Gun 206 | 15 14 84 2 1 . 46 44 Cannon 63 | . . . . . . 63 . Launcher 4 | . . 4 . . . . . Special 20 | 2 3 . 2 10 . 3 . Kinetic 198 | 15 14 13 2 1 . 109 44 Thermal 53 | 2 3 36 2 10 . . . Explosive . | . . . . . . . . Electromagnetic 39 | . . 39 . . . . . Robot Hit Streak 26 | 7 6 26 . . . 17 20 Robot Miss Streak 12 | 1 2 3 . . . 12 1 Penetration Max . | . . . . . . . . Secondary Targets 1 | . . 1 . . . . . Max Gunslinging Chain 1 | . . 1 . . . . . Shots Hit Robots 248 | 13 12 81 . . . 98 44 Core Hits 180 | 5 7 40 . . . 111 17 Critical Kills . | . . . . . . . . Critical Parts Destroyed 5 | . 1 2 . . . 1 1 Critical Strikes 8 | . 1 5 . . . 1 1 Burn 3 | . . 3 . . . . . Destroy 3 | . 1 . . . . 1 1 Smash 2 | . . 2 . . . . . Melee Attacks 36 | . . 16 . . . 7 13 Impact 17 | . . 16 . . . 1 . Slashing 13 | . . . . . . . 13 Piercing . | . . . . . . . . Sneak Attacks 8 | . . 1 . . . 7 . Combat Hostiles . | . . . . . . . . Follow-up Attacks . | . . . . . . . . Damage Inflicted 5107 | 156 186 2156 . . . 1797 812 Guns 2329 | 156 105 1122 . . . 366 580 Cannons 1327 | . . . . . . 1327 . Explosions 642 | . . 642 . . . . . Melee 722 | . . 386 . . . 104 232 Ramming 15 | . 9 6 . . . . . Kinetic 2676 | 156 105 142 . . . 1693 580 Thermal 1073 | . 72 1001 . . . . . Explosive . | . . . . . . . . Electromagnetic 621 | . . 621 . . . . . Impact 490 | . . 386 . . . 104 . Slashing 232 | . . . . . . . 232 Piercing . | . . . . . . . . Highest Corruption 2 | . 2 . . . . . . Average Corruption 1 | . 1 . . . . . . Corruption Purged . | . . . . . . . . Corruption Blocked . | . . . . . . . . Effects 3 | . 3 . . . . . . Message Errors 2 | . 2 . . . . . . Data Loss (major) 1 | . 1 . . . . . . Overload Shots . | . . . . . . . . Overflow Damage 310 | . . 309 . . . 1 . Projectiles 1 | . . . . . . 1 . Explosions 151 | . . 151 . . . . . Melee 158 | . . 158 . . . . . Knockbacks 35 | . . 1 . . . 34 . Impact 2 | . . 1 . . . 1 . Kinetic 30 | . . . . . . 30 . Secondary 3 | . . . . . . 3 . Self-Inflicted Damage 138 | . . 138 . . . . . Shots 5 | . . 5 . . . . . Rammed 5 | . 2 3 . . . . . Targets Rammed 7 | . 3 4 . . . . . Kicked . | . . . . . . . . Crushed 2 | . 1 1 . . . . . Highest Temperature 259 | 20 40 259 10 24 . 100 150 Average Temperature 38 | 11 17 58 6 8 . 22 63 Received Heat Transfer 1440 | . 105 531 . . . 144 660 Siege Activations . | . . . . . . . . Robots Corrupted . | . . . . . . . . Combat Hostiles . | . . . . . . . . Parts Fried 7 | . . 7 . . . . . Impact Corruptions 6 | . . 6 . . . . . Robots Melted 2 | . . 2 . . . . . Combat Hostiles 2 | . . 2 . . . . . Parts Melted 9 | . . 9 . . . . . Heat Transferred 1908 | . 150 1758 . . . . . Parts Sabotaged . | . . . . . . . . Parts Stolen . | . . . . . . . . Parts Stripped . | . . . . . . . . Power Chain Reactions 4 | . . 4 . . . . . Alert | -11 -10 -9 -9 -9 -8 -8 -7 ------- Run | Yrd Mat Mat Min Exi Min Mat Fac Peak Influence 510 | 20 76 385 61 . . 510 106 Initial 61 | . 11 18 61 . . . . Average 91 | 10 42 151 61 . . 113 33 Maximum Alert Level 2 | . . 1 . . . 2 . Low Security (%) 86 | 100 100 73 100 . 100 81 100 Level 1 12 | . . 26 . . . 14 . Level 2 1 | . . . . . . 3 . Level 3 . | . . . . . . . . Level 4 . | . . . . . . . . Level 5 . | . . . . . . . . High Security . | . . . . . . . . Max Security . | . . . . . . . . Squads Dispatched 14 | . 1 4 . . . 2 7 Investigation 7 | . 1 3 . . . . 3 Extermination . | . . . . . . . . Reinforcement 2 | . . 1 . . . 1 . Assault . | . . . . . . . . Garrison 5 | . . . . . . 1 4 Intercept . | . . . . . . . . Searches Triggered . | . . . . . . . . Construction Impeded . | . . . . . . . . Haulers Reinforced . | . . . . . . . . Active Scanning Responses . | . . . . . . . . Cargo Convoy Interrupts . | . . . . . . . . Stealth | -11 -10 -9 -9 -9 -8 -8 -7 --------- Run | Yrd Mat Mat Min Exi Min Mat Fac Distress Signals 4 | . . 2 . . . 2 . Communications Jammed . | . . . . . . . . Distress Signals . | . . . . . . . . Times Spotted 98 | . 9 33 . . 3 41 12 Peak Tracking Total 7 | . 6 6 . . 3 7 6 Tactical Retreats 4 | . . 3 . . . 1 . Traps | -11 -10 -9 -9 -9 -8 -8 -7 ------- Run | Yrd Mat Mat Min Exi Min Mat Fac Traps Triggered 3 | . 1 . . . . 2 . Indirectly . | . . . . . . . . Trap Hack Attempts . | . . . . . . . . Triggered . | . . . . . . . . Disarmed 10 | . 10 . . . . . . Reprogrammed . | . . . . . . . . Reused . | . . . . . . . . Traps Extracted . | . . . . . . . . Installed . | . . . . . . . . Triggered . | . . . . . . . . Machines | -11 -10 -9 -9 -9 -8 -8 -7 ---------- Run | Yrd Mat Mat Min Exi Min Mat Fac Machines Disabled 8 | . . 8 . . . . . Max in Single Turn 4 | . . 4 . . . . . Garrison Access 1 | . . . . . . 1 . Machines Repaired . | . . . . . . . . Machines Dismantled . | . . . . . . . . Machines Sabotaged . | . . . . . . . . Overloaded Fab Kills . | . . . . . . . . Hacking | -11 -10 -9 -9 -9 -8 -8 -7 --------- Run | Yrd Mat Mat Min Exi Min Mat Fac Machines Accessed 38 | . 6 9 . 4 . 13 6 Terminals 23 | . 5 6 . . . 9 3 Fabricators . | . . . . . . . . Repair Stations 4 | . . 1 . . . 1 2 Recycling Units 4 | . 1 2 . . . 1 . Scanalyzers 1 | . . . . . . 1 . Garrison Access 2 | . . . . . . 1 1 Total Hacks 177 | . 29 33 . 49 . 50 16 Successful 125 | . 16 17 . 49 . 37 6 Failed 52 | . 13 16 . . . 13 10 Catastrophic 10 | . 4 3 . . . 1 2 Database Lockouts . | . . . . . . . . Manual 10 | . 3 . . 7 . . . Terminals 97 | . 26 26 . . . 37 8 Fabricators . | . . . . . . . . Repair Stations 14 | . . 2 . . . 6 6 Recycling Units 12 | . 3 5 . . . 4 . Scanalyzers 2 | . . . . . . 2 . Garrison Access 3 | . . . . . . 1 2 Terminal Hacks 104 | . 14 13 . 49 . 25 3 Record 64 | . 6 3 . 49 . 4 2 Prototype ID Bank 4 | . 1 2 . . . 1 . Branch Access Points 1 | . . . . . . 1 . Emergency Access Points 3 | . . 1 . . . 2 . Alert Level 5 | . . 1 . . . 4 . Unreport Threat 4 | . . 2 . . . 2 . Locate Traps 5 | . 2 . . . . 2 1 Disarm Traps 2 | . 2 . . . . . . Dispatch Records 2 | . 1 . . . . 1 . Maintenance Status 2 | . 1 . . . . 1 . Patrol Status 1 | . 1 . . . . . . Reinforcement Status 1 | . . . . . . 1 . Recall Investigation 3 | . . 3 . . . . . Recall Reinforcements 1 | . . . . . . 1 . Hauler Manifests 1 | . . . . . . 1 . Zone Layout 5 | . . 1 . . . 4 . Fabricator Hacks . | . . . . . . . . Repair Station Hacks 10 | . . 2 . . . 5 3 Scan Component 6 | . . 1 . . . 3 2 Repair 3 | . . 1 . . . 1 1 Refit 1 | . . . . . . 1 . Recycling Unit Hacks 8 | . 2 2 . . . 4 . Process 1 | . . . . . . 1 . Report Inventory 2 | . . 1 . . . 1 . Retrieve Matter 1 | . . . . . . 1 . Retrieve Components 4 | . 2 1 . . . 1 . Scanalyzer 2 | . . . . . . 2 . Insert Component 1 | . . . . . . 1 . Analyze 1 | . . . . . . 1 . Garrison Access Hacks 1 | . . . . . . 1 . Seal Access 1 | . . . . . . 1 . Unauthorized Hacks . | . . . . . . . . Terminals . | . . . . . . . . Fabricators . | . . . . . . . . Repair Stations . | . . . . . . . . Recycling Units . | . . . . . . . . Scanalyzers . | . . . . . . . . Garrison Access . | . . . . . . . . Data Cores Recovered 1 | . . 1 . . . . . Used . | . . . . . . . . Hacking Detections 24 | . 6 5 . . . 7 6 Full Trace Events 9 | . 3 3 . . . . 3 Feedback Events 1 | . 1 . . . . . . Corruption 1 | . 1 . . . . . . Feedback Blocked . | . . . . . . . . Robot Schematics Acquired . | . . . . . . . . Robots Built . | . . . . . . . . Authchips . | . . . . . . . . Time . | . . . . . . . . Total Robot Build Rating . | . . . . . . . . Part Schematics Acquired 1 | . . . . . . 1 . Parts Built . | . . . . . . . . Authchips . | . . . . . . . . Time . | . . . . . . . . Total Part Build Rating . | . . . . . . . . Parts Repaired 3 | . . 1 . . . 1 1 Time 90 | . . 26 . . . 38 26 Parts Recycled . | . . . . . . . . Recycled Matter . | . . . . . . . . Retrieved Matter . | . . . . . . . . Retrieved Components 17 | . 3 10 . . . 4 . Parts Scanalyzed 1 | . . . . . . 1 . Part Schematics Acquired 1 | . . . . . . 1 . Parts Damaged . | . . . . . . . . Bothacking | -11 -10 -9 -9 -9 -8 -8 -7 ------------ Run | Yrd Mat Mat Min Exi Min Mat Fac Used RIF Installer . | . . . . . . . . Robots Hacked 3 | . . . . . . 3 . Non-combat 3 | . . . . . . 3 . Combat . | . . . . . . . . Robot Hacks Applied 5 | . . . . . . 5 . parse_system 1 | . . . . . . 1 . no_distress 4 | . . . . . . 4 . Relay Couplers Released . | . . . . . . . . Fabnet Peak Effective % . | . . . . . . . . Robots Rewired . | . . . . . . . . Allies Hacked . | . . . . . . . . Hacks Repelled . | . . . . . . . . Allies | -11 -10 -9 -9 -9 -8 -8 -7 -------- Run | Yrd Mat Mat Min Exi Min Mat Fac Total Allies . | . . . . . . . . Largest Group . | . . . . . . . . Highest-Rated Group . | . . . . . . . . Highest-Rated Ally . | . . . . . . . . Total Orders . | . . . . . . . . Ally Attacks . | . . . . . . . . Total Damage . | . . . . . . . . Kills . | . . . . . . . . Allies Corrupted . | . . . . . . . . Allies Melted . | . . . . . . . . Intel | -11 -10 -9 -9 -9 -8 -8 -7 ------- Run | Yrd Mat Mat Min Exi Min Mat Fac Robot Analysis Total . | . . . . . . . . Derelict Logs Recovered . | . . . . . . . . Drone Launches . | . . . . . . . . Drone Recoveries . | . . . . . . . . Exploration | -11 -10 -9 -9 -9 -8 -8 -7 ------------- Run | Yrd Mat Mat Min Exi Min Mat Fac Turns Passed 6711 | 145 587 1206 49 2033 476 1734 481 Spaces Moved 3570 | 63 336 563 25 1226 292 853 212 Core 4 | 4 . . . . . . . Treads 3566 | 59 336 563 25 1226 292 853 212 Legs . | . . . . . . . . Wheels . | . . . . . . . . Hover . | . . . . . . . . Flight . | . . . . . . . . Fastest Speed 50 | 50 160 160 160 160 160 160 160 Average Speed 159 | 153 160 160 160 160 160 160 160 Slowest Speed 160 | 160 160 160 160 160 160 160 160 Overloaded Moves . | . . . . . . . . Propulsion Burnouts . | . . . . . . . . Robots Hopped . | . . . . . . . . Cave-ins Triggered . | . . . . . . . . Exploration Rate (%) 50 | 4 69 62 9 94 79 77 8 Regions Visited 7 Branch Regions 3 Pre-discovered Areas 1 | . . . . 1 . . . Known Exits Taken 6 | . 1 1 1 1 1 1 . Unknown Exits Taken 1 | 1 . . . . . . . Scrap Searched 1 | . . . . . 1 . . Spaces Dug 9 | . . . . 9 . . . Terrain Destroyed 46 | 2 . 34 . 10 . . . Melee . | . . . . . . . . Projectile 12 | 2 . . . 10 . . . AOE 34 | . . 34 . . . . . Terrain Rammed . | . . . . . . . . Walls Destroyed . | . . . . . . . . Machines Disabled . | . . . . . . . . Actions | -11 -10 -9 -9 -9 -8 -8 -7 --------- Run | Yrd Mat Mat Min Exi Min Mat Fac Total 4198 | 91 362 754 26 1267 301 1114 283 Wait 238 | . . 53 . 26 . 133 26 Move 3563 | 62 335 562 24 1225 291 852 212 Hop . | . . . . . . . . Pick Up 57 | 9 5 17 . 1 3 19 3 Fast Attach 1 | . . . . . . 1 . Attach 33 | 7 1 11 . 1 2 7 4 Detach . | . . . . . . . . Swap 25 | 1 1 8 . . 1 13 1 Drop 27 | 2 3 9 . . 2 11 . Fire 205 | 10 14 74 2 10 . 71 24 Melee 36 | . . 16 . . . 7 13 Ram . | . . . . . . . . Kick . | . . . . . . . . Crush 7 | . 3 4 . . . . . Escape Stasis . | . . . . . . . . Rewire 6 | . . . . 4 2 . . Trap . | . . . . . . . . Miscellaneous . | . . . . . . . . Route ------- -11/Scrapyard -10/Materials (discovered 2 exits: *Mat x2) -9/Materials -9/Mines -9/Exiles (discovered 2 exits: *Min x2) -8/Mines -8/Materials -7/Factory History --------- Turn | Location | Event 7 | -11/Scrapyard | Discovered new exit (range 16) 146 | -11/Scrapyard | Entered Materials 313 | -10/Materials | Build established: Mutant 563 | -10/Materials | Discovered new exit (range 11) 578 | -10/Materials | Identified exit to Materials 719 | -10/Materials | Discovered exit to Materials (range 8) 733 | -10/Materials | Entered another Materials area 733 | -9/Materials | Evolved 2 slots: Utility x1, Weapon x1 842 | -9/Materials | Repaired Terrain Scanner 1829 | -9/Materials | Core integrity fell below 50% 1914 | -9/Materials | Discovered new exit (range 9) 1927 | -9/Materials | Identified exit to Mines 1939 | -9/Materials | Entered Mines 1967 | -9/Mines | Deemed a non-threat by the Exiles lab entrance 1968 | -9/Mines | Discovered new exit (range 5) 1986 | -9/Mines | Identified exit to Exiles 1988 | -9/Mines | Entered Exiles 2082 | -9/Exiles | Met 8R-AWN 2100 | -9/Exiles | Met EX-HEX 2233 | -9/Exiles | Met EX-DEC 2318 | -9/Exiles | Learned location of Zion (-7) 2374 | -9/Exiles | Discovered new exit (range 15) 2395 | -9/Exiles | Identified exit to Mines 2496 | -9/Exiles | Met EX-BIN 3014 | -9/Exiles | Discovered exit to Mines (range 15) 3486 | -9/Exiles | Visited The Gauntlet 3795 | -9/Exiles | Aligned with FarCom system 3797 | -9/Exiles | Given EX-Vault access code 3855 | -9/Exiles | Opened EX-Vault 3861 | -9/Exiles | Found Prototype Processor 3862 | -9/Exiles | Identified Modified TNC 3897 | -9/Exiles | Warned to stay clear of 0b10 Research branches 4021 | -9/Exiles | Left Exiles lab with Modified TNC 4021 | -9/Exiles | Entered Mines 4479 | -8/Mines | Discovered new exit (range 5) 4495 | -8/Mines | Identified exit to Materials 4497 | -8/Mines | Entered Materials 4497 | -8/Materials | Evolved 2 slots: Power x1, Utility x1 4518 | -8/Materials | Build established: Hacker-Mutant 4757 | -8/Materials | Repaired Flak Cannon 5193 | -8/Materials | Garrison activated, responded to threat 6054 | -8/Materials | Build established: Hacker-Skirmisher 6205 | -8/Materials | Discovered new exit (range 15) 6229 | -8/Materials | Identified exit to Factory 6231 | -8/Materials | Entered Factory 6231 | -7/Factory | Evolved 2 slots: Propulsion x1, Utility x1 6324 | -7/Factory | Repaired Lgt. Treads 6706 | -7/Factory | Garrison activated, responded to threat 6712 | -7/Factory | Self-destructed Last Messages --------------- Found 6 traps in 1 array: 6x Heavy Explosive Trap Map updated. 06687_ ALERT: Suspicious activity at Terminal F019. Dispatching Investigation squad. 06692_ Hrd. Medium Armor Plating destroyed. 06698_ G-47 Trooper destroyed. 06700_ Critical hit (Burn: +37). 06700_ Structural Scanner destroyed. 06704_ Acquired Lgt. Treads. 06704_ M-28 Smith repairs G-47 Trooper. 06704_ Lgt. Treads destroyed. 06706_ G-47 Trooper calls for garrison reinforcements. 06706_ ALERT: Activating Garrison Access F001. 06706_ Signal Interpreter destroyed. 06707_ B-48 Gladiator emerges from the garrison. 06707_ L-41 Fighter emerges from the garrison. 06707_ Shotgun destroyed. 06708_ Med. Treads destroyed. 06710_ Nuclear Core destroyed. Map ----- +----------------------------------------------------+ | ?????????????????????????????????????????^???????? | | #######??##############??????????????????????????? | | #######??##############?????????????^????????????? | | """ ##??## ##?????????^????????????????? | | """ ###### ##?????????????^????????????? | | """ ###### """"" ##??????????????????????????? | | + ""T"" ##??????????????????????????? | | ###### ##??????????????^???????????? | | = ###### ##??????????????????????????? | | #######??## ##??????????????????????????? | | ######??## ##### ##??????????????????????????? | | "##??????## ##### # ??????????????????????????? | | "##??????## #####?????????????????????????????? | | "##??????##+##+#####?????????????????????????????? | | ##??????## ##?????????????????????????????? | | ########## ##?????????????????????????????? | | ########### ##?????????????????????????????? | | + ! ## ###########?????????????????? | | " """ """ ########## ###########??????? # ???????? | | " """ """ # ### ##"""T"""##### ? ##???????? | | " """ """ # ??????## ##""" """##### ##???????? | | # ??????## ##???????? | | " """ """ # ??????## ##???????? | | " """ """ # ??????## "*! " " " " """##???????? | | " """ """ # ??????## ""b%! " " " " T"##???????? | | ##????#### G l@%! " " " "?????????????? | | +###########? ### ""g " " " "?????????????? | | ######### " % "g" " " ????????????? | | " " " " ????????????? | | ########? ! " " " " ### ?????? | | ######### ##########m " " " " ### ?????? | | ########################gg"k" " " ?????? | | ######################## ?????? | | # ############## ?????? | | # """ + ?????? | | # ""R" ############## ?????? | | # "" " ############## ?????? | | + ##??????????######### ?????? | | # ##?????????? ## ###?????? | | # ##???????????????????? ###?????? | | # ##????????????????????? ##??????? | | ############?????????????????????? ##??????? | | + ??????????????????????? ?????????? | | # ????????????????????????????????????????????? | | # ????????????????????????????????????????????? | | # ????????????????????????????????????????????? | | # ????????????????????????????????????????????? | | ??????????????????????????????????????????????? | | ??????????????????????????????????????????????? | | ??????????????????????????????????????????????? | +----------------------------------------------------+ Best States ------------- Heat Dissipation 34 Energy Generation 23 Energy Capacity 305 Matter Stores 300 Matter Capacity 300 Sight Range 16 Terrain Scan Range 14 Terrain Scan Density 85 Armor Coverage 225 Resistance: KI 20 Resistance: TH 20 Resistance: EX 20 Resistance: EM 20 Resistance: I 20 Resistance: S 20 Resistance: P 20 Evasion (%) 40 Recoil Reduction 3 Offensive Hacking 20 Defensive Hacking 10 Item Schematics ----------------- Mining Claw | -8/Materials | Scanalyzed Robot Schematics ------------------ None Fabricated ------------ Nothing Alien Tech Used ----------------- None Achievements -------------- Let's See Who's Tougher Storm Trooper Challenges ------------ None Game ------ Seed CoolingWeldingFemtoactuators Manual? 0 Play Time 01:25:13 Cumulative 6.7 hours Start 2024.04.10 @ 18:56:15 End 2024.04.10 @ 21:25:03 Sessions 1 Manual Loads 0 Difficulty Adventurer Special Mode None Game No. 9 Rogue 0 Adventurer 9 Explorer 0 Win Type - Total 0 Types 0/0/0/0/0/0/0/0/0 Lore% 11 Gallery% 11 Achievement% 14 Wizard Run 0 Options --------- Layout 1 ASCII 0 Keyboard 0 Movement Numpad Keybinds 0 Fullscreen 0 Font 20/SmallcapsGlow Map View 64x42 Zoom Use 0% Tactical HUD 1 Map Filters NONE Filters NONE Steam 1 RUN: b917822d-46c3-4a25-9b85-7925e964a388